Cogmind - Beta 13 @@@ ROGUE MODE // 2024.04.22 @ 19:55:34 Player: BagelsSniperWolf Result: Destroyed by as-72959 with Assembled Maul Performance ------------- Evolutions (1) 500 Regions Visited (3) 600 Robots Destroyed (12) 60 Value Destroyed (313) 313 Prototype IDs (2) 40 Alien Tech Used (0) 0 Bonus (0) 0 TOTAL SCORE: 1513 Bonus ------- None Cogmind --------- Core Integrity 0/400 Matter 285/300 Energy 50/100 System Corruption 13% Temperature Cool (0) Movement Core (400) Ox7 Location -9/Mines Parts ------- > --- POWER (1) -------- (None) > --- PROPULSION (3) --- (None) > --- UTILITY (3) ------ Large Storage Unit > --- WEAPON (2) ------- Improved EM Shotgun > --- INVENTORY (15) --- Ion Engine Ion Engine Light Ion Engine Fission Core Aluminum Leg Aluminum Leg Aluminum Leg Compact Wheel Improved Flight Unit Improved EM Shotgun Improved EM Shotgun Small Laser Light Assault Rifle Peak State ------------ > --- POWER ------------ Improved Ion Engine > --- PROPULSION ------- Aluminum Leg Aluminum Leg Aluminum Leg > --- UTILITY ---------- Large Storage Unit Terrain Scanner Light Armor Plating > --- WEAPON ----------- Light Assault Rifle Light Assault Rifle > --- INVENTORY -------- Ion Engine Ion Engine Light Ion Engine Aluminum Leg Aluminum Leg Aluminum Leg Compact Wheel Improved Flight Unit Improved EM Shotgun Improved EM Shotgun Improved EM Shotgun Small Laser Assault Rifle Light Assault Rifle [Rating: 12] Favorites ----------- Power Light Ion Engine Engine Light Ion Engine Propulsion Aluminum Leg Leg Aluminum Leg Wheel Compact Wheel Utility Terrain Scanner Device Terrain Scanner Storage Small Storage Unit Protection Light Armor Plating Weapon Light Assault Rifle Energy Gun Improved EM Shotgun Ballistic Gun Light Assault Rifle Build | -11 -10 -9 -9 ------- Run | Yrd Mat Mat Min Slots Evolved 2 | . . 2 . Power . | . . . . Propulsion 1 | . . 1 . Utility 1 | . . 1 . Weapon . | . . . . Parts Attached 25 | 6 4 10 5 Power 4 | 1 1 2 . Engine 4 | 1 1 2 . Core . | . . . . Reactor . | . . . . Propulsion 11 | 2 2 5 2 Treads . | . . . . Leg 9 | . 2 5 2 Wheel 2 | 2 . . . Hover . | . . . . Flight . | . . . . Utility 4 | 1 1 1 1 Device 1 | . 1 . . Storage 2 | 1 . 1 . Processor . | . . . . Hackware . | . . . . Protection 1 | . . . 1 Artifact . | . . . . Weapon 6 | 2 . 2 2 Energy Gun 1 | . . . 1 Energy Cannon . | . . . . Ballistic Gun 5 | 2 . 2 1 Ballistic Cannon . | . . . . Launcher . | . . . . Special Weapon . | . . . . Impact Weapon . | . . . . Slashing Weapon . | . . . . Piercing Weapon . | . . . . Special Melee Weapon . | . . . . Unidentified Prototypes 1 | . . . 1 Parts Lost 9 | . . . 9 Power 1 | . . . 1 Propulsion 3 | . . . 3 Utility 2 | . . . 2 Weapon 3 | . . . 3 Highest Loss Streak 9 | . . . 9 To Critical Strikes . | . . . . Average Slot Usage (%) 92 | . 97 88 96 Engine 11 | . 14 11 11 Leg 26 | . 8 33 31 Wheel 4 | . 19 . . Device 11 | . 11 11 11 Storage 11 | . 14 11 11 Protection 2 | . . . 8 Ballistic Gun 23 | . 28 22 21 Naked Turns . | . . . . Heaviest Build 33 | 11 12 30 33 Greatest Support 32 | 32 32 30 30 Greatest Overweight (x) 1 | . . . 1 Average Overweight (x) . | . . . . Largest Inventory Capacity 15 | 8 8 15 15 Average Capacity 11 | 7 8 11 15 Most Carried 15 | 5 6 15 15 Average Carried 7 | 3 4 6 14 Final Capacity 15 | 8 8 15 15 Final Carried 15 | 4 5 15 13 Class Distribution -------------------- 58% | Mutant 41% | Scavenger-Mutant Dominant Class ---------------- Mutant | -10/Materials Mutant | -9/Materials Scavenger-Mutant | -9/Mines Resources | -11 -10 -9 -9 ----------- Run | Yrd Mat Mat Min Matter Collected 566 | 211 141 164 50 Remotely . | . . . . Salvage Created 404 | . 104 183 117 Parts 24 | . 4 14 6 Haulers Intercepted . | . . . . Recyclers Shooed . | . . . . Parts Field Recycled . | . . . . Retrieved Matter . | . . . . Parts Self-Destructed . | . . . . Prevented . | . . . . Kills | -11 -10 -9 -9 ------- Run | Yrd Mat Mat Min Combat Hostiles Destroyed 12 | . 2 6 4 Guns 12 | . 2 6 4 Classes Destroyed 5 | . 1 3 1 Operator 1 | . . 1 . Watcher 1 | . . 1 . Swarmer 3 | . . 3 . Grunt 7 | . 2 3 2 Assembled 2 | . . . 2 Best Kill Streak 3 | . 1 3 2 Combat Bots Only 3 | . 1 3 2 Max Kills in Single Turn 1 | . 1 1 1 Gunslinging . | . . . . Exploded . | . . . . Melee . | . . . . Uniques/NPCs Destroyed . | . . . . Combat | -11 -10 -9 -9 -------- Run | Yrd Mat Mat Min Hostile Shots Fired 140 | . 17 53 70 Missed 28 | . 3 13 12 Damage Taken 1631 | . 170 359 1102 Core 493 | . 72 24 397 Absorbed by Shields . | . . . . Regen/Repaired (Parts) 27 | . . 27 . Core Remaining (%) 85 | 100 71 . . Volleys Fired 48 | . 13 22 13 Largest 2 | . 2 2 2 Hottest 45 | . 40 40 45 Shots Fired 91 | . 26 44 21 Gun 91 | . 26 44 21 Cannon . | . . . . Launcher . | . . . . Special . | . . . . Kinetic 90 | . 26 44 20 Thermal . | . . . . Explosive . | . . . . Electromagnetic 1 | . . . 1 Robot Hit Streak 9 | . 7 5 9 Robot Miss Streak 3 | . 2 3 1 Penetration Max . | . . . . Secondary Targets 2 | . . 1 1 Max Gunslinging Chain 1 | . . 1 1 Shots Hit Robots 58 | . 17 24 17 Core Hits 33 | . 6 15 12 Critical Kills . | . . . . Critical Parts Destroyed . | . . . . Critical Strikes . | . . . . Melee Attacks . | . . . . Impact . | . . . . Slashing . | . . . . Piercing . | . . . . Sneak Attacks . | . . . . Combat Hostiles . | . . . . Follow-up Attacks . | . . . . Damage Inflicted 622 | . 176 275 171 Guns 622 | . 176 275 171 Cannons . | . . . . Explosions . | . . . . Melee . | . . . . Ramming . | . . . . Kinetic 604 | . 176 275 153 Thermal . | . . . . Explosive . | . . . . Electromagnetic 18 | . . . 18 Impact . | . . . . Slashing . | . . . . Piercing . | . . . . Highest Corruption 13 | . . . 13 Average Corruption 11 | . . . 11 Corruption Purged . | . . . . Corruption Blocked . | . . . . Overload Shots . | . . . . Overflow Damage . | . . . . Projectiles . | . . . . Explosions . | . . . . Melee . | . . . . Knockbacks . | . . . . Impact . | . . . . Kinetic . | . . . . Secondary . | . . . . Self-Inflicted Damage . | . . . . Shots . | . . . . Rammed . | . . . . Targets Rammed . | . . . . Kicked . | . . . . Crushed . | . . . . Highest Temperature 28 | . 27 3 28 Average Temperature 8 | . 8 3 11 Received Heat Transfer 343 | . 111 90 142 Siege Activations . | . . . . Robots Corrupted . | . . . . Combat Hostiles . | . . . . Parts Fried . | . . . . Impact Corruptions . | . . . . Robots Melted . | . . . . Combat Hostiles . | . . . . Parts Melted . | . . . . Heat Transferred . | . . . . Parts Sabotaged . | . . . . Parts Stolen . | . . . . Parts Stripped . | . . . . Power Chain Reactions . | . . . . Alert | -11 -10 -9 -9 ------- Run | Yrd Mat Mat Min Peak Influence 218 | . 65 218 124 Initial 84 | . . 27 84 Average 81 | . 32 100 117 Maximum Alert Level 1 | . . 1 . Low Security (%) 93 | 100 100 84 100 Level 1 6 | . . 15 . Level 2 . | . . . . Level 3 . | . . . . Level 4 . | . . . . Level 5 . | . . . . High Security . | . . . . Max Security . | . . . . Squads Dispatched 4 | . 2 2 . Investigation 2 | . 1 1 . Extermination . | . . . . Reinforcement 2 | . 1 1 . Assault . | . . . . Garrison . | . . . . Intercept . | . . . . Searches Triggered . | . . . . Construction Impeded . | . . . . Haulers Reinforced . | . . . . Active Scanning Responses . | . . . . Cargo Convoy Interrupts . | . . . . Stealth | -11 -10 -9 -9 --------- Run | Yrd Mat Mat Min Distress Signals 3 | . 3 . . Communications Jammed . | . . . . Distress Signals . | . . . . Times Spotted 33 | . 3 10 20 Peak Tracking Total 17 | . 3 4 17 Tactical Retreats . | . . . . Traps | -11 -10 -9 -9 ------- Run | Yrd Mat Mat Min Traps Triggered . | . . . . Indirectly . | . . . . Trap Hack Attempts . | . . . . Triggered . | . . . . Disarmed . | . . . . Reprogrammed . | . . . . Reused . | . . . . Traps Extracted . | . . . . Installed . | . . . . Triggered . | . . . . Machines | -11 -10 -9 -9 ---------- Run | Yrd Mat Mat Min Machines Disabled . | . . . . Max in Single Turn . | . . . . Machines Repaired . | . . . . Machines Dismantled . | . . . . Machines Sabotaged . | . . . . Overloaded Fab Kills . | . . . . Hacking | -11 -10 -9 -9 --------- Run | Yrd Mat Mat Min Machines Accessed 4 | . . 4 . Terminals 2 | . . 2 . Fabricators . | . . . . Repair Stations 1 | . . 1 . Recycling Units . | . . . . Scanalyzers 1 | . . 1 . Garrison Access . | . . . . Total Hacks 11 | . . 11 . Successful 5 | . . 5 . Failed 6 | . . 6 . Catastrophic 3 | . . 3 . Database Lockouts . | . . . . Manual 4 | . . 4 . Terminals 5 | . . 5 . Fabricators . | . . . . Repair Stations 4 | . . 4 . Recycling Units . | . . . . Scanalyzers 2 | . . 2 . Garrison Access . | . . . . Terminal Hacks 1 | . . 1 . Record 1 | . . 1 . Fabricator Hacks . | . . . . Repair Station Hacks 3 | . . 3 . Scan Component 2 | . . 2 . Repair 1 | . . 1 . Recycling Unit Hacks . | . . . . Scanalyzer 1 | . . 1 . Insert Component 1 | . . 1 . Garrison Access Hacks . | . . . . Unauthorized Hacks . | . . . . Terminals . | . . . . Fabricators . | . . . . Repair Stations . | . . . . Recycling Units . | . . . . Scanalyzers . | . . . . Garrison Access . | . . . . Data Cores Recovered . | . . . . Used . | . . . . Hacking Detections 4 | . . 4 . Full Trace Events 3 | . . 3 . Feedback Events . | . . . . Feedback Blocked . | . . . . Robot Schematics Acquired . | . . . . Robots Built . | . . . . Authchips . | . . . . Time . | . . . . Total Robot Build Rating . | . . . . Part Schematics Acquired . | . . . . Parts Built . | . . . . Authchips . | . . . . Time . | . . . . Total Part Build Rating . | . . . . Parts Repaired 1 | . . 1 . Time 26 | . . 26 . Parts Recycled . | . . . . Recycled Matter . | . . . . Retrieved Matter . | . . . . Retrieved Components . | . . . . Parts Scanalyzed . | . . . . Part Schematics Acquired . | . . . . Parts Damaged . | . . . . Bothacking | -11 -10 -9 -9 ------------ Run | Yrd Mat Mat Min Used RIF Installer . | . . . . Robots Hacked . | . . . . Non-combat . | . . . . Combat . | . . . . Robot Hacks Applied . | . . . . Relay Couplers Released . | . . . . Fabnet Peak Effective % . | . . . . Robots Rewired . | . . . . Allies Hacked . | . . . . Hacks Repelled . | . . . . Allies | -11 -10 -9 -9 -------- Run | Yrd Mat Mat Min Total Allies 1 | . . . 1 Largest Group 1 | . . . 1 Highest-Rated Group 31 | . . . 31 Highest-Rated Ally 31 | . . . 31 Total Orders . | . . . . Ally Attacks 2 | . . . 2 Total Damage 42 | . . . 42 Kills 1 | . . . 1 Allies Corrupted . | . . . . Allies Melted . | . . . . Intel | -11 -10 -9 -9 ------- Run | Yrd Mat Mat Min Robot Analysis Total . | . . . . Derelict Logs Recovered . | . . . . Drone Launches . | . . . . Drone Recoveries . | . . . . Exploration | -11 -10 -9 -9 ------------- Run | Yrd Mat Mat Min Turns Passed 805 | 72 172 350 211 Spaces Moved 357 | 44 78 162 73 Core 1 | 1 . . . Treads . | . . . . Legs 255 | . 20 162 73 Wheels 101 | 43 58 . . Hover . | . . . . Flight . | . . . . Fastest Speed 50 | 50 100 120 120 Average Speed 126 | 98 105 120 182 Slowest Speed 190 | 100 120 120 190 Overloaded Moves . | . . . . Propulsion Burnouts . | . . . . Robots Hopped . | . . . . Cave-ins Triggered . | . . . . Exploration Rate (%) 16 | 4 19 17 26 Regions Visited 3 Branch Regions 1 Pre-discovered Areas 1 | . . . 1 Known Exits Taken . | . . . . Unknown Exits Taken 3 | 1 1 1 . Scrap Searched 1 | . . . 1 Spaces Dug . | . . . . Terrain Destroyed . | . . . . Melee . | . . . . Projectile . | . . . . AOE . | . . . . Terrain Rammed . | . . . . Walls Destroyed . | . . . . Machines Disabled . | . . . . Actions | -11 -10 -9 -9 --------- Run | Yrd Mat Mat Min Total 626 | 71 143 275 137 Wait 169 | 13 46 71 39 Move 354 | 43 77 161 73 Hop . | . . . . Pick Up 24 | 9 2 10 3 Fast Attach 2 | 1 1 . . Attach 9 | 5 . 1 3 Detach . | . . . . Swap 14 | . 3 9 2 Drop 6 | . 1 1 4 Fire 48 | . 13 22 13 Melee . | . . . . Ram . | . . . . Kick . | . . . . Crush . | . . . . Escape Stasis . | . . . . Rewire . | . . . . Trap . | . . . . Miscellaneous . | . . . . Route ------- -11/Scrapyard -10/Materials (discovered 2 exits: *Mat / [*Min]) -9/Materials -9/Mines History --------- Turn | Location | Event 32 | -11/Scrapyard | Discovered new exit (range 16) 73 | -11/Scrapyard | Entered Materials 226 | -10/Materials | Discovered new exit (range 10) 238 | -10/Materials | Discovered new exit (range 15) 245 | -10/Materials | Entered another Materials area 245 | -9/Materials | Evolved 2 slots: Propulsion x1, Utility x1 289 | -9/Materials | Repaired Aluminum Leg 304 | -9/Materials | Build established: Mutant 568 | -9/Materials | Discovered new exit (range 16) 595 | -9/Materials | Entered Mines 608 | -9/Mines | Escorted by a lone wolf Derelict 628 | -9/Mines | Learned location of Storage (-7) 771 | -9/Mines | Assembled infested the area 776 | -9/Mines | Assisted by a Guerilla fighting off Assembled 779 | -9/Mines | Build established: Scavenger-Mutant 802 | -9/Mines | Core integrity fell below 50% 803 | -9/Mines | System corruption reached 10% 805 | -9/Mines | Core integrity fell below 20% 806 | -9/Mines | Destroyed by as-72959 with Assembled Maul Last Messages --------------- Acquired Fission Core. Knocked back. as-44805 destroyed. Switching to secondary target: as-72959. as-19933 destroyed. Lgt. Assault Rifle destroyed. as-93808 destroyed. Aluminum Leg destroyed. Lgt. Armor Plating destroyed. Aluminum Leg destroyed. Imp. Ion Engine destroyed. Terrain Scanner destroyed. System corrupted by crushing effect (+5). System corrupted by crushing effect (+3). Aluminum Leg destroyed. System corrupted by crushing effect (+4). Lgt. Assault Rifle destroyed. System corrupted by crushing effect (+1). Assault Rifle destroyed. Identified Imp. EM Shotgun. Map ----- +----------------------------------------------------+ | | | | | | | | | | | | | | | | | | | | | ?????????????????????????????????????????????????? | | ??????????????????????????#??????????????????????? | | ?????????????????????????????????????????????????? | | ?????????????????????????????????????????????????? | | ?????????????????????????????????????????????????? | | ?????????????????????????????????????????????????? | | ???????????#?????#???????????????????????????????? | | ?????????????????????????????????????????????????? | | ?????#???????????????????????????????????????????? | | ??????????????????????????????????###????????????? | | ?????##??????##?????????????????? ?????????????? | | ????? ##?????#?????#####??????? ???????????????? | | ?????# #?????#??#??# ##???? #????????????????? | | ?????# #??##???????# ##?? %%#????????????????? | | ?????# #?????####### aa##%a #?????????????????? | | ?????# #?????# !!! a@a%%% ##????????????????? | | ?????# #??#### %| aaaaaa #????????????????? | | ?????# ##### ####### a #???????????? | | ?????# ####?#??## #???????????? | | ?????# ###### ##???????## #???????????? | | ###### #????# #???????#?####### #???????????? | | # #???? #????????????????## #???????????? | | # ######???? ??????????????????? #??????????? | | # #??#??#??? ???????????#???#???? #??????????? | | # #??????#?? ????????????????????? #??????????? | | # #????????? ?????????????????????? ???????????? | | # #????????? ????????????????#?????????????????? | | #???????? ??????????????????????????????????? | | ###??? ???? ??????????????#???????????????????? | | ?????????? ?????????????????????????????????? | | ??????????? ??????????????????????????????????? | | ??????????? ??????????????????????????????????? | | ###???????? ??????????????????????????????????? | | ##???????? ????????????????????????????????????? | | #?????????????????????????????????????????????? | | ##????????????????????????????????????????????? | | ##???????????????????????????????????????????? | | #??????????????????????????????????????????? | | # #?????????????????????????????????????????? | | ?# ##????????????????????????????????????????? | +----------------------------------------------------+ Best States ------------- Heat Dissipation 28 Energy Generation 12 Energy Capacity 265 Matter Stores 300 Matter Capacity 300 Sight Range 16 Terrain Scan Range 14 Terrain Scan Density 10 Armor Coverage 150 Evasion (%) 55 Item Schematics ----------------- None Robot Schematics ------------------ None Fabricated ------------ Nothing Alien Tech Used ----------------- None Achievements -------------- None Challenges ------------ None Game ------ Seed TripodMyomerLoader Manual? 0 Play Time 00:14:45 Cumulative 11.1 hours Start 2024.04.22 @ 19:26:44 End 2024.04.22 @ 19:55:34 Sessions 3 Manual Loads 0 Difficulty Rogue Special Mode None Game No. 19 Rogue 19 Adventurer 0 Explorer 0 Win Type - Total 0 Types 0/0/0/0/0/0/0/0/0 Lore% 7 Gallery% 13 Achievement% 14 Wizard Run 0 Options --------- Layout 0 ASCII 0 Keyboard 0 Movement Mouse Keybinds 0 Fullscreen 1 Font 18/SmallcapsGlow Map View 76x50 Zoom Use 0% Tactical HUD 0 Map Filters NONE Filters NONE Steam 1 RUN: ba1cdff2-07ba-403c-a20f-fa60cdd1bd2c